Cogmind - Beta 11.1 @@@ ROGUE MODE // 2022.12.15 @ 17:49:13 Player: L1l7 Result: Destroyed by S-27 Virus with Autogun Performance ------------- Evolutions (5) 2500 Regions Visited (11) 2200 Robots Destroyed (41) 205 Value Destroyed (1540) 1540 Prototype IDs (17) 340 Alien Tech Used (0) 0 Bonus (302) 302 TOTAL SCORE: 7087 Bonus ------- High Alert Combat Kills 2 Met Data Miner 300 Cogmind --------- Core Integrity 0/1000 Matter 286/300 Energy 99/100 System Corruption 13% Temperature Cool (0) Movement Core (50) Location -5/Factory Parts ------- > --- POWER (2) -------- (None) > --- PROPULSION (6) --- (None) > --- UTILITY (7) ------ Advanced Signal Interpreter Advanced Melee Analysis Suite Advanced Melee Analysis Suite Advanced Melee Analysis Suite Advanced Melee Analysis Suite > --- WEAPON (2) ------- (None) > --- INVENTORY (5) ---- (None) Peak State ------------ > --- POWER ------------ Cold Fusion Reactor > --- PROPULSION ------- Antigrav System Antigrav System > --- UTILITY ---------- Advanced Signal Interpreter Advanced Melee Analysis Suite Advanced Melee Analysis Suite Advanced Melee Analysis Suite Advanced Melee Analysis Suite Advanced Melee Analysis Suite Improved Target Analyzer > --- WEAPON ----------- Thunder Hammer > --- INVENTORY -------- Neutrino Core Enhanced Armored Leg Xenon Bombardment Thruster KE Penetrator Heavy Proton Missile Launcher [Rating: 63] Favorites ----------- Power Makeshift Power Source Engine Makeshift Power Source Power Core Neutrino Core Reactor Cold Fusion Reactor Propulsion Flight Unit Leg Enhanced Flexi-carbon Leg Hover Unit Antigrav System Flight Unit Flight Unit Utility Advanced Melee Analysis Suite Device Improved Heat Sink Storage Small Storage Unit Processor Advanced Melee Analysis Suite Protection Improved Light Armor Plating Weapon Powered Hammer Energy Gun Field Laser Energy Cannon Proton Cannon Ballistic Gun Light Assault Rifle Launcher Scatter Rocket Array Impact Weapon Powered Hammer Build | -11 -10 -9 -9 -8 -7 -6 -6 -6 -6 -5 -5 ------- Run | Scr Mat Mat Sto Mat Fac Fac Low Low Dat Pro Fac Slots Evolved 10 | . . 2 . 2 2 2 . . . . 2 Power 1 | . . . . . . 1 . . . . . Propulsion 4 | . . 1 . 1 1 1 . . . . . Utility 5 | . . 1 . 1 1 . . . . . 2 Weapon . | . . . . . . . . . . . . Parts Attached 74 | 8 2 7 6 6 3 2 4 . . 4 32 Power 12 | 1 . 2 2 . 1 . 2 . . . 4 Engine 7 | 1 . 2 2 . 1 . 1 . . . . Core 3 | . . . . . . . 1 . . . 2 Reactor 2 | . . . . . . . . . . . 2 Propulsion 25 | 2 2 4 1 3 2 1 . . . 2 8 Treads . | . . . . . . . . . . . . Leg 7 | 2 . . . . . . . . . 1 4 Wheel . | . . . . . . . . . . . . Hover 4 | . . . . . . . . . . 1 3 Flight 14 | . 2 4 1 3 2 1 . . . . 1 Utility 15 | 2 . . . 1 . 1 . . . 1 10 Device 4 | 1 . . . 1 . 1 . . . . 1 Storage 1 | 1 . . . . . . . . . . . Processor 7 | . . . . . . . . . . . 7 Hackware . | . . . . . . . . . . . . Protection 3 | . . . . . . . . . . 1 2 Artifact . | . . . . . . . . . . . . Weapon 22 | 3 . 1 3 2 . . 2 . . 1 10 Energy Gun 5 | 1 . . . 1 . . . . . . 3 Energy Cannon 2 | . . . . . . . . . . . 2 Ballistic Gun 4 | 2 . . . 1 . . . . . . 1 Ballistic Cannon . | . . . . . . . . . . . . Launcher 8 | . . 1 3 . . . 1 . . 1 2 Special Weapon . | . . . . . . . . . . . . Impact Weapon 3 | . . . . . . . 1 . . . 2 Slashing Weapon . | . . . . . . . . . . . . Piercing Weapon . | . . . . . . . . . . . . Special Melee Weapon . | . . . . . . . . . . . . Unidentified Prototypes 4 | . . . 1 . . . . . . 1 2 Parts Lost 30 | . 1 4 3 2 . . 4 2 . 4 10 Power 5 | . . 1 1 . . . 1 . . 1 1 Propulsion 15 | . . 3 1 2 . . 2 2 . . 5 Utility 7 | . 1 . . . . . 1 . . 2 3 Weapon 3 | . . . 1 . . . . . . 1 1 Highest Loss Streak 5 | . 1 4 3 2 . . 3 2 . 2 5 To Critical Strikes . | . . . . . . . . . . . . Average Slot Usage (%) 52 | . 95 73 63 67 67 70 64 39 33 36 44 Engine 4 | . 11 11 11 9 7 6 4 6 6 6 . Reactor 1 | . . . . . . . . . . . 4 Leg 5 | . 22 . . . . . . . . 4 7 Hover 1 | . . . . . . . . . . 1 2 Flight 11 | . 5 33 31 36 36 38 36 19 13 . . Device 4 | . 11 . . 4 7 11 11 6 6 5 . Storage 3 | . 14 11 11 9 7 6 4 . . . . Processor 4 | . . . . . . . . . . . 15 Protection 2 | . . . . . . . . . . 5 3 Ballistic Gun 3 | . 28 15 . 3 7 6 1 . . . . Launcher 2 | . . 3 9 . . . . . . 4 1 Impact Weapon 3 | . . . . . . . 4 6 6 6 2 Naked Turns . | . . . . . . . . . . . . Heaviest Build 42 | 11 11 12 24 12 19 21 28 8 8 19 42 Greatest Support 60 | 20 20 12 12 16 20 26 26 16 8 28 60 Greatest Overweight (x) 12 | . . . 1 . . . 1 . . 1 12 Average Overweight (x) . | . . . . . . . . . . . . Largest Inventory Capacity 8 | 8 8 8 8 8 8 8 8 5 5 5 5 Average Capacity 6 | 7 8 8 8 8 8 8 7 5 5 5 5 Most Carried 8 | 5 8 7 8 8 6 8 8 5 5 5 5 Average Carried 4 | 1 4 5 5 6 5 6 5 5 5 4 3 Final Capacity 8 | 8 8 8 8 8 8 8 5 5 5 5 5 Final Carried 8 | 1 8 3 7 5 6 6 5 5 5 5 . Class Distribution -------------------- 73% | Mutant 25% | Sprinter Dominant Class ---------------- Mutant | -10/Materials Mutant | -9/Materials Sprinter | -9/Storage Sprinter | -8/Materials Sprinter | -7/Factory Sprinter | -6/Factory Sprinter | -6/Lower Caves Mutant | -6/Lower Caves Mutant | -6/Data Miner Mutant | -5/Proximity Caves Mutant | -5/Factory Resources | -11 -10 -9 -9 -8 -7 -6 -6 -6 -6 -5 -5 ----------- Run | Scr Mat Mat Sto Mat Fac Fac Low Low Dat Pro Fac Matter Collected 1428 | 306 50 16 114 . . . 166 128 . 243 405 Remotely . | . . . . . . . . . . . . Salvage Created 1733 | 130 105 22 10 . . . 283 46 . 163 974 Parts 63 | 11 14 3 3 . . . 6 . . 3 23 Haulers Intercepted . | . . . . . . . . . . . . Recyclers Shooed 3 | 1 . . . . . . . . . . 2 Parts Field Recycled . | . . . . . . . . . . . . Retrieved Matter . | . . . . . . . . . . . . Parts Self-Destructed 7 | . . . . . . . 4 . . 3 . Prevented . | . . . . . . . . . . . . Kills | -11 -10 -9 -9 -8 -7 -6 -6 -6 -6 -5 -5 ------- Run | Scr Mat Mat Sto Mat Fac Fac Low Low Dat Pro Fac Combat Hostiles Destroyed 31 | . 7 3 . . . . 7 . . 5 9 Melee 5 | . . . . . . . . . . . 5 Guns 8 | . 7 1 . . . . . . . . . AOE 13 | . . 2 . . . . 6 . . 5 . Classes Destroyed 11 | 2 1 1 1 . . . 4 . . 1 1 Worker 1 | . . 1 . . . . . . . . . Tunneler 3 | 3 . . . . . . . . . . . Recycler 5 | 1 . . . . . . . . . . 4 Operator 1 | . . . 1 . . . . . . . . Swarmer 10 | . 7 3 . . . . . . . . . Grunt 8 | . . . . . . . 4 . . 3 1 Duelist 2 | . . . . . . . . . . . 2 Hunter 4 | . . . . . . . 2 . . 1 1 Programmer 6 | . . . . . . . 1 . . . 5 Behemoth 1 | . . . . . . . . . . 1 . Samaritan 3 | . . . . . . . 2 1 . . . Best Kill Streak 6 | 2 3 4 1 . . . 6 . . 3 5 Combat Bots Only 6 | . 3 3 . . . . 6 . . 3 3 Max Kills in Single Turn 4 | 1 1 3 1 . . . 4 1 . 3 1 Gunslinging . | . . . . . . . . . . . . Exploded 4 | . . 1 . . . . 4 . . 3 . Melee 1 | . . . . . . . . . . . 1 Uniques/NPCs Destroyed . | . . . . . . . . . . . . Combat | -11 -10 -9 -9 -8 -7 -6 -6 -6 -6 -5 -5 -------- Run | Scr Mat Mat Sto Mat Fac Fac Low Low Dat Pro Fac Damage Taken 4641 | . 312 267 412 97 105 12 387 26 . 543 2480 Core 1545 | . 97 69 138 . 13 . 112 . . 110 1006 Absorbed by Shields . | . . . . . . . . . . . . Core Remaining (%) 80 | 100 61 . 48 100 98 . . . . 73 . Volleys Fired 70 | 13 25 2 1 4 . . 3 . . 5 17 Largest 2 | 2 2 2 1 1 . . 1 . . 1 2 Hottest 150 | 40 40 53 33 63 . . 50 . . 50 150 Shots Fired 112 | 26 50 4 1 4 . . 3 . . 5 19 Gun 91 | 26 50 2 . 4 . . . . . . 9 Cannon 5 | . . . . . . . . . . . 5 Launcher 16 | . . 2 1 . . . 3 . . 5 5 Special . | . . . . . . . . . . . . Kinetic 88 | 26 50 2 . 1 . . . . . . 9 Thermal 3 | . . . . 3 . . . . . . . Explosive 11 | . . 2 1 . . . 3 . . 5 . Electromagnetic 10 | . . . . . . . . . . . 10 Robot Hit Streak 10 | 7 4 1 2 6 . . 2 . . 2 10 Robot Miss Streak 9 | 2 3 2 . 1 . . 4 . . 9 2 Penetration Max . | . . . . . . . . . . . . Secondary Targets 1 | . 1 . . . . . . . . . . Max Gunslinging Chain 1 | . 1 . . . . . . . . . . Shots Hit Robots 106 | 18 24 1 1 4 . . 9 1 . 5 43 Core Hits 82 | 8 9 5 1 . . . 26 . . 22 11 Critical Kills 2 | . . . . . . . . . . . 2 Critical Parts Destroyed 13 | . . . . . . . 2 . . . 11 Critical Strikes 15 | . . . . . . . 2 . . . 13 Destroy 1 | . . . . . . . . . . . 1 Smash 14 | . . . . . . . 2 . . . 12 Melee Attacks 41 | . . . . . . . 7 1 . . 33 Impact 41 | . . . . . . . 7 1 . . 33 Slashing . | . . . . . . . . . . . . Piercing . | . . . . . . . . . . . . Sneak Attacks 7 | . . . . . . . 2 1 . . 4 Combat Hostiles . | . . . . . . . . . . . . Follow-up Attacks . | . . . . . . . . . . . . Damage Inflicted 5006 | 146 195 200 53 61 . . 1254 88 . 676 2333 Guns 636 | 146 195 7 . 61 . . . . . . 227 Cannons 139 | . . . . . . . . . . . 139 Explosions 1893 | . . 193 53 . . . 828 . . 676 143 Melee 2338 | . . . . . . . 426 88 . . 1824 Ramming . | . . . . . . . . . . . . Kinetic 587 | 146 195 7 . 12 . . . . . . 227 Thermal 49 | . . . . 49 . . . . . . . Explosive 1750 | . . 193 53 . . . 828 . . 676 . Electromagnetic 282 | . . . . . . . . . . . 282 Impact 2338 | . . . . . . . 426 88 . . 1824 Slashing . | . . . . . . . . . . . . Piercing . | . . . . . . . . . . . . Highest Corruption 13 | . . . . . . . 1 1 1 1 13 Average Corruption 3 | . . . . . . . 1 1 1 1 8 Corruption Purged . | . . . . . . . . . . . . Corruption Blocked . | . . . . . . . . . . . . Effects 21 | . . . . . . . 1 . . 3 17 Message Errors 5 | . . . . . . . . . . . 5 Matter Fused 3 | . . . . . . . . . . 2 1 Heat Flow Errors 4 | . . . . . . . . . . . 4 Energy Discharges 2 | . . . . . . . . . . . 2 Parts Rejected 1 | . . . . . . . . . . . 1 Data Loss (minor) 2 | . . . . . . . . . . 1 1 Data Loss (major) 3 | . . . . . . . 1 . . . 2 Misdirections 1 | . . . . . . . . . . . 1 Overload Shots . | . . . . . . . . . . . . Overflow Damage 1260 | . . 5 . . . . 315 7 . . 933 Projectiles . | . . . . . . . . . . . . Explosions 16 | . . 5 . . . . 11 . . . . Melee 1244 | . . . . . . . 304 7 . . 933 Knockbacks 18 | . . . . . . . 1 . . . 17 Impact 15 | . . . . . . . 1 . . . 14 Kinetic . | . . . . . . . . . . . . Secondary 3 | . . . . . . . . . . . 3 Self-Inflicted Damage 178 | . . . 16 . . . 38 . . 89 35 Shots 9 | . . . 1 . . . 2 . . 4 2 Rammed . | . . . . . . . . . . . . Targets Rammed . | . . . . . . . . . . . . Kicked . | . . . . . . . . . . . . Crushed . | . . . . . . . . . . . . Highest Temperature 259 | . . 11 16 54 . . 6 . . 12 259 Average Temperature 49 | . . 8 5 30 . . 3 . . 12 75 Received Heat Transfer 666 | . 54 39 174 18 9 6 63 6 . 243 54 Siege Activations . | . . . . . . . . . . . . Robots Corrupted 2 | . . . . . . . . . . . 2 Combat Hostiles 1 | . . . . . . . . . . . 1 Parts Fried 6 | . . . . . . . 2 . . . 4 Impact Corruptions 49 | . . . . . . . 22 2 . . 25 Robots Melted . | . . . . . . . . . . . . Combat Hostiles . | . . . . . . . . . . . . Parts Melted . | . . . . . . . . . . . . Heat Transferred 111 | . . . . 111 . . . . . . . Parts Sabotaged . | . . . . . . . . . . . . Parts Stolen . | . . . . . . . . . . . . Parts Stripped . | . . . . . . . . . . . . Power Chain Reactions . | . . . . . . . . . . . . Missiles Intercepted . | . . . . . . . . . . . . Alert | -11 -10 -9 -9 -8 -7 -6 -6 -6 -6 -5 -5 ------- Run | Scr Mat Mat Sto Mat Fac Fac Low Low Dat Pro Fac Peak Influence 454 | 20 268 415 454 229 94 105 . . . . 185 Initial 187 | . 13 113 172 187 94 45 . . . . 65 Average 113 | 7 121 235 306 205 94 57 . . . . 81 Maximum Alert Level 2 | . 1 2 2 1 . . . . . . . Low Security (%) 89 | 100 92 53 28 68 100 100 . . . . 100 Level 1 7 | . 7 26 47 31 . . . . . . . Level 2 2 | . . 20 24 . . . . . . . . Level 3 . | . . . . . . . . . . . . Level 4 . | . . . . . . . . . . . . Level 5 . | . . . . . . . . . . . . High Security . | . . . . . . . . . . . . Max Security . | . . . . . . . . . . . . Squads Dispatched 12 | . 1 2 2 1 1 1 . . . . 4 Investigation 6 | . 1 . 2 . 1 1 . . . . 1 Extermination 3 | . . . . . . . . . . . 3 Reinforcement 3 | . . 2 . 1 . . . . . . . Assault . | . . . . . . . . . . . . Garrison . | . . . . . . . . . . . . Intercept . | . . . . . . . . . . . . Searches Triggered . | . . . . . . . . . . . . Construction Impeded . | . . . . . . . . . . . . Haulers Reinforced . | . . . . . . . . . . . . Active Scanning Responses . | . . . . . . . . . . . . Cargo Convoy Interrupts . | . . . . . . . . . . . . Stealth | -11 -10 -9 -9 -8 -7 -6 -6 -6 -6 -5 -5 --------- Run | Scr Mat Mat Sto Mat Fac Fac Low Low Dat Pro Fac Distress Signals 4 | . 1 . 1 1 . 1 . . . . . Communications Jammed . | . . . . . . . . . . . . Distress Signals . | . . . . . . . . . . . . Times Spotted 116 | . 16 17 24 8 4 2 10 1 . 9 25 Peak Tracking Total 17 | . 6 13 17 7 4 3 7 1 . 4 8 Tactical Retreats 11 | . 1 2 1 . . . 2 1 . 1 3 Traps | -11 -10 -9 -9 -8 -7 -6 -6 -6 -6 -5 -5 ------- Run | Scr Mat Mat Sto Mat Fac Fac Low Low Dat Pro Fac Traps Triggered 5 | . 1 . 2 . . 1 . . . . 1 Indirectly . | . . . . . . . . . . . . Trap Hack Attempts . | . . . . . . . . . . . . Triggered . | . . . . . . . . . . . . Disarmed 3 | . . . . 3 . . . . . . . Reprogrammed . | . . . . . . . . . . . . Reused . | . . . . . . . . . . . . Traps Extracted . | . . . . . . . . . . . . Installed . | . . . . . . . . . . . . Triggered 2 | . . . . . . . 1 1 . . . Machines | -11 -10 -9 -9 -8 -7 -6 -6 -6 -6 -5 -5 ---------- Run | Scr Mat Mat Sto Mat Fac Fac Low Low Dat Pro Fac Machines Disabled 9 | . . 1 2 . . . . . . . 6 Max in Single Turn 2 | . . 1 2 . . . . . . . 1 Machines Sabotaged . | . . . . . . . . . . . . Garrisons Compromised 1 | . . . . . . . . . . . 1 Overloaded Fab Kills . | . . . . . . . . . . . . Hacking | -11 -10 -9 -9 -8 -7 -6 -6 -6 -6 -5 -5 --------- Run | Scr Mat Mat Sto Mat Fac Fac Low Low Dat Pro Fac Machines Accessed 17 | . 1 2 1 3 1 . 1 . 4 . 4 Terminals 11 | . 1 2 1 3 . . 1 . . . 3 Fabricators 1 | . . . . . . . . . . . 1 Repair Stations . | . . . . . . . . . . . . Recycling Units . | . . . . . . . . . . . . Scanalyzers . | . . . . . . . . . . . . Garrison Access 1 | . . . . . 1 . . . . . . Total Hacks 65 | . 4 6 3 8 2 . 4 . 29 . 9 Successful 46 | . . 2 1 4 . . 4 . 29 . 6 Failed 19 | . 4 4 2 4 2 . . . . . 3 Catastrophic 3 | . . . . 2 1 . . . . . . Database Lockouts . | . . . . . . . . . . . . Manual 2 | . . . . . . . . . 1 . 1 Terminals 32 | . 4 6 3 8 . . 4 . . . 7 Fabricators 2 | . . . . . . . . . . . 2 Repair Stations . | . . . . . . . . . . . . Recycling Units . | . . . . . . . . . . . . Scanalyzers . | . . . . . . . . . . . . Garrison Access 2 | . . . . . 2 . . . . . . Terminal Hacks 44 | . . 2 1 4 . . 4 . 29 . 4 Record 18 | . . . . . . . 4 . 11 . 3 Part Schematic 11 | . . . . . . . . . 11 . . Robot Schematic 4 | . . . . . . . . . 4 . . Prototype ID Bank 4 | . . . 1 . . . . . 3 . . Branch Access Points 1 | . . . . 1 . . . . . . . Emergency Access Points 1 | . . 1 . . . . . . . . . Alert Level 3 | . . 1 . 1 . . . . . . 1 Disarm Traps 2 | . . . . 2 . . . . . . . Fabricator Hacks 2 | . . . . . . . . . . . 2 Load Schematic 1 | . . . . . . . . . . . 1 Build 1 | . . . . . . . . . . . 1 Repair Station Hacks . | . . . . . . . . . . . . Recycling Unit Hacks . | . . . . . . . . . . . . Scanalyzer . | . . . . . . . . . . . . Garrison Access Hacks . | . . . . . . . . . . . . Unauthorized Hacks . | . . . . . . . . . . . . Terminals . | . . . . . . . . . . . . Fabricators . | . . . . . . . . . . . . Repair Stations . | . . . . . . . . . . . . Recycling Units . | . . . . . . . . . . . . Scanalyzers . | . . . . . . . . . . . . Garrison Access . | . . . . . . . . . . . . Data Cores Recovered 1 | . . . 1 . . . . . . . . Used . | . . . . . . . . . . . . Hacking Detections 12 | . 1 2 1 3 1 . . . . . 4 Full Trace Events 3 | . . . 1 . 1 . . . . . 1 Feedback Events . | . . . . . . . . . . . . Feedback Blocked . | . . . . . . . . . . . . Robot Schematics Acquired 4 | . . . . . . . . . 4 . . Robots Built . | . . . . . . . . . . . . Authchips . | . . . . . . . . . . . . Time . | . . . . . . . . . . . . Total Robot Build Rating . | . . . . . . . . . . . . Part Schematics Acquired 11 | . . . . . . . . . 11 . . Parts Built 1 | . . . . . . . . . . . 1 Authchips . | . . . . . . . . . . . . Time 169 | . . . . . . . . . . . 169 Total Part Build Rating 6 | . . . . . . . . . . . 6 Parts Repaired . | . . . . . . . . . . . . Time . | . . . . . . . . . . . . Parts Recycled . | . . . . . . . . . . . . Recycled Matter . | . . . . . . . . . . . . Retrieved Matter . | . . . . . . . . . . . . Retrieved Components . | . . . . . . . . . . . . Parts Scanalyzed . | . . . . . . . . . . . . Part Schematics Acquired . | . . . . . . . . . . . . Parts Damaged . | . . . . . . . . . . . . Bothacking | -11 -10 -9 -9 -8 -7 -6 -6 -6 -6 -5 -5 ------------ Run | Scr Mat Mat Sto Mat Fac Fac Low Low Dat Pro Fac Used RIF Installer . | . . . . . . . . . . . . Robots Hacked . | . . . . . . . . . . . . Non-combat . | . . . . . . . . . . . . Combat . | . . . . . . . . . . . . Robot Hacks Applied . | . . . . . . . . . . . . Relay Couplers Released . | . . . . . . . . . . . . Fabnet Peak Effective % . | . . . . . . . . . . . . Robots Rewired . | . . . . . . . . . . . . Allies Hacked . | . . . . . . . . . . . . Hacks Repelled . | . . . . . . . . . . . . Allies | -11 -10 -9 -9 -8 -7 -6 -6 -6 -6 -5 -5 -------- Run | Scr Mat Mat Sto Mat Fac Fac Low Low Dat Pro Fac Total Allies 3 | . . . 2 . . . . . . 1 . Largest Group 2 | . . . 2 . . . . . . 1 . Highest-Rated Group 96 | . . . 62 . . . . . . 96 . Highest-Rated Ally 96 | . . . 31 . . . . . . 96 . Total Orders . | . . . . . . . . . . . . Ally Attacks 28 | . . . 13 . . . . . . 15 . Total Damage 733 | . . . 210 . . . . . . 523 . Kills 2 | . . . 2 . . . . . . . . Allies Corrupted . | . . . . . . . . . . . . Allies Melted 1 | . . . 1 . . . . . . . . Intel | -11 -10 -9 -9 -8 -7 -6 -6 -6 -6 -5 -5 ------- Run | Scr Mat Mat Sto Mat Fac Fac Low Low Dat Pro Fac Robot Analysis Total . | . . . . . . . . . . . . Derelict Logs Recovered 4 | . . . . . . . 1 2 . 1 . Drone Launches . | . . . . . . . . . . . . Drone Recoveries . | . . . . . . . . . . . . Exploration | -11 -10 -9 -9 -8 -7 -6 -6 -6 -6 -5 -5 ------------- Run | Scr Mat Mat Sto Mat Fac Fac Low Low Dat Pro Fac Turns Passed 3087 | 120 275 94 106 129 49 55 348 192 34 770 915 Spaces Moved 4355 | 70 225 232 248 349 121 177 905 552 92 719 665 Core 84 | 22 . . . . . . . . . . 62 Treads . | . . . . . . . . . . . . Legs 907 | 48 117 . . . . . . . . 467 275 Wheels . | . . . . . . . . . . . . Hover 426 | . . . . . . . . . . 143 283 Flight 2938 | . 108 232 248 349 121 177 905 552 92 109 45 Fastest Speed 24 | 50 37 32 32 29 27 24 24 31 37 37 40 Average Speed 53 | 98 80 33 35 29 27 25 28 34 37 98 80 Slowest Speed 650 | 120 120 34 112 34 29 27 108 37 37 140 650 Overloaded Moves . | . . . . . . . . . . . . Propulsion Burnouts . | . . . . . . . . . . . . Robots Hopped 29 | . 1 11 5 5 5 . 1 . . . 1 Cave-ins Triggered . | . . . . . . . . . . . . Exploration Rate (%) 41 | 3 49 24 47 30 4 4 90 70 74 88 17 Regions Visited 11 Branch Regions 5 Pre-discovered Areas 1 | . . . . . . . . . 1 . . Known Exits Taken . | . . . . . . . . . . . . Unknown Exits Taken 11 | 1 1 1 1 1 1 1 1 1 1 1 . Scrap Searched 7 | . . . . . . . 2 2 . 3 . Spaces Dug . | . . . . . . . . . . . . Terrain Destroyed 249 | . . 18 8 . . . 82 . . 141 . Melee . | . . . . . . . . . . . . Projectile . | . . . . . . . . . . . . AOE 249 | . . 18 8 . . . 82 . . 141 . Terrain Rammed . | . . . . . . . . . . . . Walls Destroyed . | . . . . . . . . . . . . Machines Disabled . | . . . . . . . . . . . . Actions | -11 -10 -9 -9 -8 -7 -6 -6 -6 -6 -5 -5 --------- Run | Scr Mat Mat Sto Mat Fac Fac Low Low Dat Pro Fac Total 4935 | 101 281 233 261 367 132 185 981 554 91 770 979 Wait 286 | . 12 . . 9 8 5 52 . . 34 166 Move 4287 | 69 222 210 237 338 110 176 902 551 91 718 663 Hop 28 | . 1 10 5 5 5 . 1 . . . 1 Pick Up 90 | 9 12 2 8 4 4 2 6 1 . 5 37 Fast Attach . | . . . . . . . . . . . . Attach 73 | 8 2 7 6 6 3 2 4 . . 4 31 Detach 8 | 1 1 . 2 . . . 1 . . . 3 Swap 1 | . . . . . . . . . . . 1 Drop 51 | 1 6 2 2 1 2 . 5 1 . 4 27 Fire 70 | 13 25 2 1 4 . . 3 . . 5 17 Melee 41 | . . . . . . . 7 1 . . 33 Ram . | . . . . . . . . . . . . Kick . | . . . . . . . . . . . . Crush . | . . . . . . . . . . . . Escape Stasis . | . . . . . . . . . . . . Rewire . | . . . . . . . . . . . . Trap . | . . . . . . . . . . . . Miscellaneous . | . . . . . . . . . . . . Route ------- -11/Scrapyard -10/Materials (discovered 2 exits: *Mat / [*Min]) -9/Materials -9/Storage -8/Materials -7/Factory -6/Factory -6/Lower Caves -6/Lower Caves -6/Data Miner -5/Proximity Caves -5/Factory (discovered 3 exits: Fac / Upp x2) History --------- Turn | Location | Event 9 | -11/Scrapyard | Discovered new exit (range 16) 121 | -11/Scrapyard | Entered Materials 311 | -10/Materials | Build established: Mutant 372 | -10/Materials | Discovered new exit (range 9) 393 | -10/Materials | Discovered new exit (range 10) 396 | -10/Materials | Entered another Materials area 396 | -9/Materials | Evolved 2 slots: Propulsion x1, Utility x1 486 | -9/Materials | Discovered new exit (range 9) 490 | -9/Materials | Entered Storage 495 | -9/Storage | Found Prototype Launcher 496 | -9/Storage | Identified Scatter Rocket Array 499 | -9/Storage | Found Scatter Rocket Array 512 | -9/Storage | Lost 4 parts (1p3n) 536 | -9/Storage | Met a pair of Derelict thieves 585 | -9/Storage | Core integrity fell below 50% 593 | -9/Storage | Discovered new exit (range 7) 596 | -9/Storage | Entered Materials 596 | -8/Materials | Evolved 2 slots: Propulsion x1, Utility x1 618 | -8/Materials | Lost 3 parts (1p1n1w) 722 | -8/Materials | Discovered new exit (range 9) 725 | -8/Materials | Entered Factory 725 | -7/Factory | Evolved 2 slots: Propulsion x1, Utility x1 749 | -7/Factory | Discovered new exit (range 16) 774 | -7/Factory | Build established: Sprinter 774 | -7/Factory | Entered another Factory area 774 | -6/Factory | Evolved 2 slots: Power x1, Propulsion x1 827 | -6/Factory | Discovered new exit (range 9) 829 | -6/Factory | Entered Lower Caves 829 | -6/Lower Caves | Spotted B-75 Beast 1083 | -6/Lower Caves | Attracted the attention of an 0b10 base 1098 | -6/Lower Caves | Learned 8 Factory zone layouts 1098 | -6/Lower Caves | Learned Research stockpile data 1115 | -6/Lower Caves | Lost 3 parts (2n1u) 1168 | -6/Lower Caves | Discovered new exit (range 12) 1174 | -6/Lower Caves | Learned Factory garrison access intel 1177 | -6/Lower Caves | Entered another Lower Caves area 1251 | -6/Lower Caves | Learned location of 1 exit from Factory 1262 | -6/Lower Caves | Attracted the attention of an 0b10 checkpoint 1310 | -6/Lower Caves | Encountered a Warlord checkpoint 1332 | -6/Lower Caves | Discovered new exit (range 12) 1369 | -6/Lower Caves | Entered Data Miner 1369 | -6/Data Miner | Discovered new exit (range 6) 1377 | -6/Data Miner | Met Data Miner 1388 | -6/Data Miner | Learned location of Section 7 (-2) 1388 | -6/Data Miner | Acquired the access code to Warlord's prototype stash 1395 | -6/Data Miner | Received God Mode back door access code from Data Miner 1403 | -6/Data Miner | Entered Proximity Caves 1437 | -5/Proximity Caves | Escorted by Enhanced Grunt 1537 | -5/Proximity Caves | Spotted B-75 Beast 1559 | -5/Proximity Caves | Build established: Mutant 1585 | -5/Proximity Caves | Destroyed B-75 Beast 1698 | -5/Proximity Caves | Learned 4 Factory zone layouts 2092 | -5/Proximity Caves | Attracted the attention of an 0b10 base 2168 | -5/Proximity Caves | Discovered new exit (range 4) 2173 | -5/Proximity Caves | Entered Factory 2173 | -5/Factory | Evolved 2 slots: Utility x2 2174 | -5/Factory | Identified exit to Upper Caves 2175 | -5/Factory | Identified exit to Factory 2177 | -5/Factory | Loaded intel: 3 garrison access locations 2489 | -5/Factory | Fabricated Enh. Armored Leg? 2713 | -5/Factory | System corruption reached 10% 2730 | -5/Factory | Lost 4 parts (1p2n1u) 3026 | -5/Factory | Lost 5 parts (2n2u1w) 3038 | -5/Factory | Core integrity fell below 50% 3061 | -5/Factory | Core integrity fell below 20% 3088 | -5/Factory | Destroyed by S-27 Virus with Autogun Last Messages --------------- Destroyed Hpw. Shock Rifle. Slug penetrates P-70 Sage. Destroyed Tesla Rifle. K-01 Serf collects debris. Slug penetrates Wall. K-01 Serf cleans the Matter Pump. K-01 Serf collects debris. Acquired 41 matter. K-01 Serf collects debris. System corrupted: Substantial component data lost. Dropped KE Penetrator. Penetrated by Slug. Dropped Enh. Armored Leg. Dropped Neutrino Core. K-01 Serf collects debris. 8EJV=GYIYB Q:XSB=IRKIKAOL1ITBP4K Xenon Bombardment Thruster destroyed. System corrupted: Matter fused (-9). ALERT: Infestation compromised Garrison Access F001, dispatching Demolisher response squad. Map ----- +----------------------------------------------------+ | ?????????????????????????????????????????????????? | | ?????????????????????????????????????????????????? | | ?????????????????????????????????????????????????? | | ?????????????????????????????????????????????????? | | ?????????????????????????????????????????????????? | | ?????????????????????????????????????????????????? | | ?????????????????????????????????????????????????? | | ?????????????????????????????????????????????????? | | ???????????????????????????????????????????????# | | ???????????????????????????????????????????????# | | ??????????????????????????????????????????????## | | ??????????????????????????????????????????????# " | | ??????????????????????????????????????????????## " | | ?????????????????????????????????????????####### " | | ?????????????????????????????????????????# # " | | ?????????????????????????????????"?????#?# ##### " | | ?????????????????????????????? """ """ #?# #???# | | ?????????????????????????????? """ """ ########### | | ????????????????????????????# # | | ????????????????????????????# """ """ # """" | | ????????????????????????????# """ """ # ""S"" | | ?????????????????????????????? """ """ # "" "" | | ???????????????????????????????? # = | | ????????????""????????????????????! ? | | ????????????""????###+##############+############# | | ?????????????G????# @ ss ss | | ????????????""????# s | | ????????????""????# | | ??????????????????# A | | ???????????????? w | | ???????????????##############+#############+### | | ???????????????????????????????????????? # | | ???????????????????????????????????????? # | | ??????????????????????????????????????????????# | | ??????????????????????????????????????????????+ | | ??????????????????????????????????????????????# | | ??????????????????????????????????????????????# | | ??????????????????????????????????????????????#### | | ?????????????????????????????????????????????????? | | ?????????????????????????????????????????????????? | | ?????????????????????????????????????????????????? | | ?????????????????????????????????????????????????? | | ?????????????????????????????????????????????????? | | ?????????????????????????????????????????????????? | | ?????????????????????????????????????????????????? | | ?????????????????????????????????????????????????? | | ?????????????????????????????????????????????????? | | ?????????????????????????????????????????????????? | | ?????????????????????????????????????????????????? | | ?????????????????????????????????????????????????? | +----------------------------------------------------+ Best States ------------- Heat Dissipation 51 Energy Generation 30 Energy Capacity 410 Matter Stores 300 Matter Capacity 300 Sight Range 16 Robot Scan Range 16 Terrain Scan Density 10 Armor Coverage 250 Resistance: KI 20 Evasion (%) 75 Melee Accuracy 40 Target Analysis 6 Item Schematics ----------------- Combat Drone Bay | -6/Data Miner | Free Lgt. Regenerative Plating | -6/Data Miner | Free Enh. Armored Leg | -6/Data Miner | Free Prc. Energy Filter | -6/Data Miner | Free Adv. Medium Treads | -6/Data Miner | Free Adv. Power Amplifier | -6/Data Miner | Free Dual-blade Saw | -6/Data Miner | Free Plasma Sword | -6/Data Miner | Free Imp. Component Analysis Suite | -6/Data Miner | Free Hvy. Gauss Cannon | -6/Data Miner | Free Adv. Weapon Cycler | -6/Data Miner | Free Robot Schematics ------------------ B-48 Gladiator | -6/Data Miner | Free G-50 Soldier | -6/Data Miner | Free H-66 Slayer | -6/Data Miner | Free L-61 Swordsman | -6/Data Miner | Free Fabricated ------------ Enh. Armored Leg | x1 | -5/Factory Alien Tech Used ----------------- None Achievements -------------- The Oracle Challenges ------------ None Game ------ Seed CoreAluminumRipper Manual? 0 Play Time 00:54:16 Cumulative 41.5 hours Start 2022.12.15 @ 16:50:55 End 2022.12.15 @ 17:49:13 Sessions 1 Manual Loads 0 Difficulty Rogue Special Mode None Game No. 62 Rogue 62 Adventurer 0 Explorer 0 Win Type - Total 1 Types 1/0/0/0/0/0/0/0/0 Lore% 31 Gallery% 38 Achievement% 31 Wizard Run 0 Options --------- ASCII 0 Keyboard 0 Movement Arrows Keybinds 0 Fullscreen 2 Font 16/SmallcapsGlow Map View 76x50 Tactical HUD 0 Map Filters NONE Filters NONE Steam 1 RUN: 3ec0f882-c6a5-443b-96eb-24edd8911be2